[Event "Torneo Nuevo Centro. Jornada 10"]
[Site "Chess.com"]
[Date "2020.08.21"]
[Round "4"]
[White "Donate Moreno, Silvia"]
[Black "Aguado, Pablo Luis"]
[Result "0-1"]
[WhiteElo "1801"]
[BlackElo "1949"]
[TimeControl "180+2"]
[EndTime "11:13:16 PDT"]
[Termination "Victoria de PLAD_2006 por abandono"]

1. e4 {[%clk 0:03:01.9]} 1... c5 {[%clk 0:02:58.5]} 2. Nf3 {[%clk 0:03:02.7]}
2... d6 {[%clk 0:02:59.5]} 3. d4 {[%clk 0:03:02.6]} 3... cxd4 {[%clk 0:03:00.8]}
4. Nxd4 {[%clk 0:03:04.5]} 4... Nf6 {[%clk 0:03:01.9]} 5. Nc3 {[%clk 0:03:04.8]}
5... g6 {[%clk 0:03:02.9]} 6. Be3 {[%clk 0:03:05.2]} 6... Bg7 {[%clk 0:03:03.9]}
7. f3 {[%clk 0:03:04.4]} 7... O-O {[%clk 0:03:04.7]} 8. Qd2 {[%clk 0:03:05.7]}
8... Nc6 {[%clk 0:03:05.8]} 9. O-O-O {[%clk 0:03:04.9]} 9... d5 {[%clk 0:03:07]}
10. Nxc6 {[%clk 0:02:54.6]} 10... bxc6 {[%clk 0:03:07.3]} 11. Bd3 {[%clk
0:02:52.4]} 11... Be6 {[%clk 0:03:04.2]} 12. exd5 {[%clk 0:02:44.9]} 12... cxd5
{[%clk 0:03:04.7]} 13. Bd4 {[%clk 0:02:44.7]} 13... Qc7 {[%clk 0:02:51.4]} 14.
Kb1 {[%clk 0:02:42.7]} 14... Rab8 {[%clk 0:02:52.1]} 15. g4 {[%clk 0:02:40.5]}
15... Rb4 {[%clk 0:02:51.3]} 16. Be2 {[%clk 0:02:34.4]} 16... Rfb8 {[%clk
0:02:51.1]} 17. b3 {[%clk 0:02:35.2]} 17... Ne4 {[%clk 0:02:39]} 18. fxe4 {[%clk
0:02:16.6]} 18... Bxd4 {[%clk 0:02:39.4]} 19. Nxd5 {[%clk 0:02:15]} 19... Bxd5
{[%clk 0:02:38.3]} 20. exd5 {[%clk 0:02:16.6]} 20... Bg7 {[%clk 0:02:36.8]} 21.
c3 {[%clk 0:01:39.4]} 21... Bxc3 {[%clk 0:02:34.6]} 22. Rc1 {[%clk 0:01:40.5]}
22... Bxd2 {[%clk 0:02:32.6]} 23. Rxc7 {[%clk 0:01:39.3]} 23... Re4 {[%clk
0:02:27.5]} 24. Bd3 {[%clk 0:01:33.6]} 24... Rxg4 {[%clk 0:02:23.4]} 25. Rxe7
{[%clk 0:01:31.9]} 25... a5 {[%clk 0:02:21.4]} 26. d6 {[%clk 0:01:29.2]} 26...
Rd4 {[%clk 0:02:20.8]} 27. d7 {[%clk 0:01:27.3]} 27... Kf8 {[%clk 0:01:56.5]}
28. Re8+ {[%clk 0:01:22.1]} 28... Rxe8 {[%clk 0:01:55.4]} 29. dxe8=Q+ {[%clk
0:01:24]} 29... Kxe8 {[%clk 0:01:56.7]} 30. Kc2 {[%clk 0:01:25.2]} 30... Bb4
{[%clk 0:01:54.7]} 31. Rf1 {[%clk 0:01:25.3]} 31... f5 {[%clk 0:01:53.7]} 32.
Rf2 {[%clk 0:01:16.8]} 32... Ke7 {[%clk 0:01:50.3]} 33. Bc4 {[%clk 0:01:13.8]}
33... Kf6 {[%clk 0:01:49]} 34. Kb2 {[%clk 0:01:14.3]} 34... g5 {[%clk
0:01:44.9]} 35. a3 {[%clk 0:01:12.9]} 35... Bd6 {[%clk 0:01:43.5]} 36. Kc3
{[%clk 0:01:12.4]} 36... Be5 {[%clk 0:01:42.4]} 37. Kc2 {[%clk 0:01:13.2]} 37...
f4 {[%clk 0:01:42.6]} 38. Bd3 {[%clk 0:01:13.6]} 38... h5 {[%clk 0:01:42.8]} 39.
Be2 {[%clk 0:01:08.3]} 39... g4 {[%clk 0:01:42.5]} 40. h3 {[%clk 0:01:05.3]}
40... Kg5 {[%clk 0:01:39.1]} 41. hxg4 {[%clk 0:01:04.9]} 41... hxg4 {[%clk
0:01:41]} 42. Rg2 {[%clk 0:01:04.9]} 42... g3 {[%clk 0:01:23.3]} 43. Bf3 {[%clk
0:01:02.6]} 43... Rd6 {[%clk 0:01:18.4]} 44. Rg1 {[%clk 0:01:01.9]} 44... Rh6
{[%clk 0:01:17.9]} 45. Kd3 {[%clk 0:01:01.7]} 45... Rh2 {[%clk 0:01:15.2]} 46.
Ke4 {[%clk 0:01:00.3]} 46... Bd6 {[%clk 0:01:14.1]} 47. b4 {[%clk 0:00:50.7]}
47... axb4 {[%clk 0:01:14]} 48. axb4 {[%clk 0:00:52.6]} 48... Bxb4 {[%clk
0:01:13.5]} 49. Rb1 {[%clk 0:00:53.6]} 49... Bd6 {[%clk 0:01:06.6]} 50. Rb5+
{[%clk 0:00:53.6]} 50... Kf6 {[%clk 0:01:03.2]} 51. Rb6 {[%clk 0:00:47.8]} 51...
Ke7 {[%clk 0:01:01.7]} 52. Rb7+ {[%clk 0:00:43.4]} 52... Kd8 {[%clk 0:00:52.9]}
53. Rg7 {[%clk 0:00:43.4]} 53... Ra2 {[%clk 0:00:43.3]} 54. Rg8+ {[%clk
0:00:39.7]} 54... Ke7 {[%clk 0:00:41.3]} 55. Rg7+ {[%clk 0:00:40.5]} 55... Kf6
{[%clk 0:00:41.8]} 56. Rg8 {[%clk 0:00:41.3]} 56... Ra4+ {[%clk 0:00:38.3]} 57.
Kd3 {[%clk 0:00:41.5]} 57... Ra3+ {[%clk 0:00:38.8]} 58. Ke2 {[%clk 0:00:40.5]}
58... Re3+ {[%clk 0:00:39.7]} 0

[Event "Torneo Nuevo Centro. Jornada 10"]
[Site "Chess.com"]
[Date "2020.08.21"]
[Round "4"]
[White "Cebolla Ruiz, David"]
[Black "Hernández Tomás, Efrén"]
[Result "1/2-1/2"]
[WhiteElo "1548"]
[BlackElo "1107"]
[TimeControl "180+2"]
[EndTime "11:13:32 PDT"]
[Termination "Partida en tablas por material insuficiente"]

1. e4 {[%clk 0:03:01.9]} 1... e5 {[%clk 0:03:01.2]} 2. Nf3 {[%clk 0:03:02.1]}
2... Nf6 {[%clk 0:03:02.6]} 3. Nxe5 {[%clk 0:03:01.9]} 3... Qe7 {[%clk
0:03:03.3]} 4. d4 {[%clk 0:03:01.2]} 4... d6 {[%clk 0:03:03.5]} 5. Nf3 {[%clk
0:02:59.6]} 5... Nxe4 {[%clk 0:03:04.9]} 6. Qe2 {[%clk 0:02:59.3]} 6... Bg4
{[%clk 0:03:05.2]} 7. Nbd2 {[%clk 0:02:53.9]} 7... Nxd2 {[%clk 0:03:03.8]} 8.
Qxe7+ {[%clk 0:02:54.1]} 8... Bxe7 {[%clk 0:03:02.8]} 9. Nxd2 {[%clk 0:02:55]}
9... Nc6 {[%clk 0:03:01.1]} 10. Bb5 {[%clk 0:02:55.5]} 10... Bd7 {[%clk
0:02:57.6]} 11. O-O {[%clk 0:02:51.2]} 11... a6 {[%clk 0:02:58.3]} 12. Bxc6
{[%clk 0:02:41.7]} 12... Bxc6 {[%clk 0:02:58.2]} 13. Re1 {[%clk 0:02:42.6]}
13... Rd8 {[%clk 0:02:53.6]} 14. Nb3 {[%clk 0:02:41.8]} 14... Rd7 {[%clk
0:02:54.4]} 15. Bg5 {[%clk 0:02:11.8]} 15... f6 {[%clk 0:02:52.2]} 16. Bf4
{[%clk 0:02:10.8]} 16... O-O {[%clk 0:02:50.5]} 17. Re6 {[%clk 0:02:10.3]} 17...
Bd5 {[%clk 0:02:48.9]} 18. Re3 {[%clk 0:02:10.6]} 18... f5 {[%clk 0:02:44.9]}
19. Rae1 {[%clk 0:02:08.8]} 19... Bf6 {[%clk 0:02:41.3]} 20. c3 {[%clk
0:02:00.7]} 20... Bxb3 {[%clk 0:02:39.3]} 21. axb3 {[%clk 0:02:01.2]} 21... b6
{[%clk 0:02:26.1]} 22. Kf1 {[%clk 0:01:55.5]} 22... Kf7 {[%clk 0:02:16.3]} 23.
R1e2 {[%clk 0:01:49.2]} 23... Kg8 {[%clk 0:02:13.4]} 24. Ke1 {[%clk 0:01:48.9]}
24... Kf7 {[%clk 0:02:03.5]} 25. Kd2 {[%clk 0:01:49.3]} 25... c5 {[%clk
0:01:56.7]} 26. Re6 {[%clk 0:00:34.5]} 26... Be7 {[%clk 0:01:45.1]} 27. h3
{[%clk 0:00:14]} 27... cxd4 {[%clk 0:01:42.5]} 28. cxd4 {[%clk 0:00:14.8]} 28...
Re8 {[%clk 0:01:40.8]} 29. Kd3 {[%clk 0:00:14.2]} 29... g6 {[%clk 0:01:41.1]}
30. d5 {[%clk 0:00:14.5]} 30... b5 {[%clk 0:01:40.9]} 31. Kc3 {[%clk 0:00:14.1]}
31... a5 {[%clk 0:01:41.3]} 32. b4 {[%clk 0:00:13.8]} 32... a4 {[%clk
0:01:41.9]} 33. Kd3 {[%clk 0:00:11.4]} 33... Red8 {[%clk 0:01:38]} 34. Rc2
{[%clk 0:00:11.4]} 34... Rb8 {[%clk 0:01:31.5]} 35. Rc6 {[%clk 0:00:11.7]} 35...
Rbd8 {[%clk 0:01:29.8]} 36. Rb6 {[%clk 0:00:12.8]} 36... Ra8 {[%clk 0:01:16.1]}
37. Rxb5 {[%clk 0:00:12.5]} 37... Ra6 {[%clk 0:01:16.3]} 38. Ra5 {[%clk
0:00:11.1]} 38... Rxa5 {[%clk 0:01:15.2]} 39. bxa5 {[%clk 0:00:11.9]} 39... Ra7
{[%clk 0:01:14.9]} 40. Bxd6 {[%clk 0:00:11]} 40... Bxd6 {[%clk 0:01:14.8]} 41.
Rxd6 {[%clk 0:00:11.7]} 41... Rxa5 {[%clk 0:01:14.9]} 42. Rd7+ {[%clk
0:00:12.5]} 42... Kf6 {[%clk 0:01:14.5]} 43. d6 {[%clk 0:00:08.3]} 43... Rd5+
{[%clk 0:01:10.8]} 44. Kc3 {[%clk 0:00:07.8]} 44... Rc5+ {[%clk 0:01:08.2]} 45.
Kd3 {[%clk 0:00:07.2]} 45... Rd5+ {[%clk 0:01:08.4]} 46. Kc3 {[%clk 0:00:08.7]}
46... Rc5+ {[%clk 0:01:09]} 47. Kd2 {[%clk 0:00:07.7]} 47... Rd5+ {[%clk
0:01:09.5]} 48. Kc1 {[%clk 0:00:07.2]} 48... Rc5+ {[%clk 0:01:09.8]} 49. Kb1
{[%clk 0:00:07.7]} 49... Rd5 {[%clk 0:01:06.5]} 50. Rxh7 {[%clk 0:00:06.8]}
50... Rxd6 {[%clk 0:01:06.9]} 51. Rh8 {[%clk 0:00:05.7]} 51... Rd1+ {[%clk
0:01:07.3]} 52. Ka2 {[%clk 0:00:04.8]} 52... Rd2 {[%clk 0:01:07.1]} 53. Ra8
{[%clk 0:00:04.6]} 53... Rxf2 {[%clk 0:01:07.5]} 54. g4 {[%clk 0:00:05.2]} 54...
fxg4 {[%clk 0:01:04.6]} 55. hxg4 {[%clk 0:00:06.4]} 55... Rf4 {[%clk 0:01:04.4]}
56. Ka3 {[%clk 0:00:06.6]} 56... Rxg4 {[%clk 0:01:03.8]} 57. Rxa4 {[%clk
0:00:07.6]} 57... Rg3+ {[%clk 0:01:03.9]} 58. Kb4 {[%clk 0:00:06.5]} 58... Rg4+
{[%clk 0:01:04.1]} 59. Ka5 {[%clk 0:00:07.7]} 59... Rxa4+ {[%clk 0:01:04.6]} 60.
Kxa4 {[%clk 0:00:08.9]} 60... g5 {[%clk 0:01:05.6]} 61. b4 {[%clk 0:00:09.5]}
61... g4 {[%clk 0:01:06.6]} 62. b5 {[%clk 0:00:11.1]} 62... g3 {[%clk
0:01:07.7]} 63. b6 {[%clk 0:00:12.6]} 63... g2 {[%clk 0:01:08.7]} 64. b7 {[%clk
0:00:13.9]} 64... g1=Q {[%clk 0:01:09]} 65. b8=Q {[%clk 0:00:14.6]} 65... Qd4+
{[%clk 0:01:08.9]} 66. Qb4 {[%clk 0:00:15]} 66... Qxb4+ {[%clk 0:01:09.5]} 67.
Kxb4 {[%clk 0:00:16.3]} 1/2-1

[Event "Torneo Nuevo Centro. Jornada 10"]
[Site "Chess.com"]
[Date "2020.08.21"]
[Round "4"]
[White "Ainsa Jimenez, Lucas"]
[Black "Chofre Murcia, Adrián"]
[Result "0-1"]
[WhiteElo "1148"]
[BlackElo "1670"]
[TimeControl "180+2"]
[EndTime "11:13:40 PDT"]
[Termination "Victoria de Kelorian por tiempo"]

1. e4 {[%clk 0:03:01.9]} 1... e5 {[%clk 0:02:59.7]} 2. Nf3 {[%clk 0:03:02.2]}
2... Nc6 {[%clk 0:02:59.1]} 3. Bc4 {[%clk 0:03:03]} 3... Bc5 {[%clk 0:02:55]} 4.
d3 {[%clk 0:03:02.4]} 4... d6 {[%clk 0:02:55.4]} 5. Nc3 {[%clk 0:02:56.1]} 5...
Nf6 {[%clk 0:02:54.8]} 6. Ng5 {[%clk 0:02:55.6]} 6... O-O {[%clk 0:02:54.8]} 7.
O-O {[%clk 0:02:54.9]} 7... h6 {[%clk 0:02:55.4]} 8. Nf3 {[%clk 0:02:54.9]} 8...
Bg4 {[%clk 0:02:52.9]} 9. h3 {[%clk 0:02:52.8]} 9... Bh5 {[%clk 0:02:53.4]} 10.
Be3 {[%clk 0:02:21.6]} 10... Bb6 {[%clk 0:02:48.6]} 11. Re1 {[%clk 0:02:09]}
11... Bxe3 {[%clk 0:02:39.8]} 12. fxe3 {[%clk 0:02:07.9]} 12... Re8 {[%clk
0:02:33.5]} 13. Rf1 {[%clk 0:02:05]} 13... a6 {[%clk 0:02:29.8]} 14. Qd2 {[%clk
0:02:02.8]} 14... Na5 {[%clk 0:02:27.9]} 15. Bb3 {[%clk 0:01:51.8]} 15... Nxb3
{[%clk 0:02:27.1]} 16. axb3 {[%clk 0:01:52.2]} 16... c6 {[%clk 0:02:24.7]} 17.
d4 {[%clk 0:01:47.2]} 17... Bxf3 {[%clk 0:02:20.6]} 18. Rxf3 {[%clk 0:01:44.4]}
18... Qb6 {[%clk 0:02:14.9]} 19. dxe5 {[%clk 0:01:36.3]} 19... dxe5 {[%clk
0:02:09.9]} 20. Qf2 {[%clk 0:01:35.9]} 20... Re6 {[%clk 0:02:05.4]} 21. Rd1
{[%clk 0:01:33.7]} 21... Rae8 {[%clk 0:02:00.2]} 22. Qg3 {[%clk 0:01:30.6]}
22... Nh5 {[%clk 0:01:52.3]} 23. Qh4 {[%clk 0:01:24.1]} 23... Nf6 {[%clk
0:01:50.2]} 24. Na4 {[%clk 0:01:21.2]} 24... Qb5 {[%clk 0:01:30]} 25. c4 {[%clk
0:01:13.6]} 25... Qxb3 {[%clk 0:01:16.9]} 26. Nc5 {[%clk 0:01:13.3]} 26... Qxd1+
{[%clk 0:01:16.9]} 27. Rf1 {[%clk 0:01:09.7]} 27... Qd6 {[%clk 0:01:08.6]} 28.
Nxe6 {[%clk 0:01:06.3]} 28... Qxe6 {[%clk 0:01:09.6]} 29. b3 {[%clk 0:01:02.1]}
29... b5 {[%clk 0:01:06.2]} 30. cxb5 {[%clk 0:00:59.3]} 30... axb5 {[%clk
0:01:06.8]} 31. b4 {[%clk 0:00:59.1]} 31... Qe7 {[%clk 0:01:01.2]} 32. Qg3
{[%clk 0:00:52.5]} 32... Nxe4 {[%clk 0:00:59.2]} 33. Qe1 {[%clk 0:00:47.6]}
33... Qd6 {[%clk 0:00:48.9]} 34. Qb1 {[%clk 0:00:38.5]} 34... Nd2 {[%clk
0:00:45.8]} 35. Qd1 {[%clk 0:00:34.8]} 35... Qd3 {[%clk 0:00:43.7]} 36. Rf2
{[%clk 0:00:31.3]} 36... Rd8 {[%clk 0:00:43.9]} 37. Qe1 {[%clk 0:00:16.1]} 37...
Ne4 {[%clk 0:00:42]} 38. Rb2 {[%clk 0:00:13.7]} 38... Qd1 {[%clk 0:00:42.2]} 39.
Qxd1 {[%clk 0:00:12.9]} 39... Rxd1+ {[%clk 0:00:43.2]} 40. Kh2 {[%clk
0:00:12.7]} 40... Rd3 {[%clk 0:00:44.2]} 41. Re2 {[%clk 0:00:12.7]} 41... Nc3
{[%clk 0:00:42.5]} 42. Rc2 {[%clk 0:00:13.5]} 42... Rxe3 {[%clk 0:00:43.3]} 43.
h4 {[%clk 0:00:12]} 43... f6 {[%clk 0:00:43.7]} 44. g3 {[%clk 0:00:12.2]} 44...
Kf7 {[%clk 0:00:44.4]} 45. Kh3 {[%clk 0:00:13.1]} 45... Ke6 {[%clk 0:00:44.8]}
46. Kg4 {[%clk 0:00:14]} 46... f5+ {[%clk 0:00:44.8]} 47. Kh5 {[%clk 0:00:14.1]}
47... Rxg3 {[%clk 0:00:39.1]} 48. Rd2 {[%clk 0:00:13.3]} 48... Ne4 {[%clk
0:00:35.7]} 49. Rd6+ {[%clk 0:00:08.2]} 49... Kf7 {[%clk 0:00:28.5]} 50. Rd7+
{[%clk 0:00:07.5]} 50... Kg8 {[%clk 0:00:27.7]} 51. Rxg7+ {[%clk 0:00:07.9]}
51... Rxg7 {[%clk 0:00:18.4]} 0

[Event "Torneo Nuevo Centro. Jornada 10"]
[Site "Chess.com"]
[Date "2020.08.21"]
[Round "4"]
[White "Leal Uribe, Jhonny Alberto"]
[Black "Gil López, Alejandro"]
[Result "1-0"]
[WhiteElo "2456"]
[BlackElo "2212"]
[TimeControl "180+2"]
[EndTime "11:13:48 PDT"]
[Termination "Victoria de jhonnyuribe por abandono"]

1. d4 {[%clk 0:03:01.9]} 1... e5 {[%clk 0:03:00.4]} 2. dxe5 {[%clk 0:03:02.3]}
2... d6 {[%clk 0:03:01.6]} 3. exd6 {[%clk 0:03:02.9]} 3... Bxd6 {[%clk
0:03:03.4]} 4. Nf3 {[%clk 0:03:04.5]} 4... Nc6 {[%clk 0:03:04.1]} 5. e3 {[%clk
0:03:03.9]} 5... Bg4 {[%clk 0:03:05.4]} 6. Be2 {[%clk 0:03:02.4]} 6... Qe7
{[%clk 0:03:06.9]} 7. c3 {[%clk 0:03:01.9]} 7... O-O-O {[%clk 0:03:08]} 8. Qa4
{[%clk 0:03:03.3]} 8... h5 {[%clk 0:03:05.6]} 9. h3 {[%clk 0:03:03.9]} 9... Bf5
{[%clk 0:03:04.1]} 10. Nbd2 {[%clk 0:03:03]} 10... Nf6 {[%clk 0:03:03.3]} 11.
Nd4 {[%clk 0:03:02]} 11... Nxd4 {[%clk 0:03:01.7]} 12. cxd4 {[%clk 0:03:03.2]}
12... Kb8 {[%clk 0:03:01.5]} 13. Nc4 {[%clk 0:02:59.6]} 13... Ne4 {[%clk
0:02:55.6]} 14. Nxd6 {[%clk 0:02:55.4]} 14... Rxd6 {[%clk 0:02:51.1]} 15. Bd2
{[%clk 0:02:49.5]} 15... Nxd2 {[%clk 0:02:48]} 16. Kxd2 {[%clk 0:02:48.9]} 16...
c5 {[%clk 0:02:49.8]} 17. Rad1 {[%clk 0:02:35.8]} 17... cxd4 {[%clk 0:02:47.5]}
18. exd4 {[%clk 0:02:36.5]} 18... Rhd8 {[%clk 0:02:48.6]} 19. Ke1 {[%clk
0:02:30.6]} 19... Re6 {[%clk 0:02:49.3]} 20. Rd2 {[%clk 0:02:30.2]} 20... Re8
{[%clk 0:02:46.1]} 21. Qc4 {[%clk 0:02:28.5]} 21... Rc8 {[%clk 0:02:32.4]} 22.
Qb5 {[%clk 0:02:22.1]} 22... Rc1+ {[%clk 0:02:30.7]} 23. Rd1 {[%clk 0:02:22.6]}
23... Rxd1+ {[%clk 0:02:27.6]} 24. Kxd1 {[%clk 0:02:22.7]} 24... Be4 {[%clk
0:02:17]} 25. Rg1 {[%clk 0:01:37.7]} 25... Bc6 {[%clk 0:02:12.7]} 26. Qxh5
{[%clk 0:01:35.1]} 26... Qf6 {[%clk 0:02:09.4]} 27. Qg4 {[%clk 0:01:16.4]} 27...
Re4 {[%clk 0:01:52.5]} 28. Qg3+ {[%clk 0:01:16.5]} 28... Ka8 {[%clk 0:01:52.9]}
29. Bd3 {[%clk 0:01:07.5]} 29... Rxd4 {[%clk 0:01:52.4]} 30. Re1 {[%clk
0:01:04.7]} 30... Bb5 {[%clk 0:01:47.3]} 31. Re3 {[%clk 0:01:05.4]} 31... a6
{[%clk 0:01:33.1]} 32. Ke2 {[%clk 0:00:55.1]} 32... Bxd3+ {[%clk 0:01:20.7]} 33.
Rxd3 {[%clk 0:00:56.4]} 33... Re4+ {[%clk 0:01:21.9]} 34. Kf1 {[%clk 0:00:50.8]}
34... Qxb2 {[%clk 0:01:22.5]} 35. Rd8+ {[%clk 0:00:51]} 35... Ka7 {[%clk
0:01:23]} 36. Qb8+ {[%clk 0:00:52.7]} 36... Kb6 {[%clk 0:01:23.8]} 37. Qd6+
{[%clk 0:00:28.6]} 37... Ka5 {[%clk 0:01:21]} 38. Qd5+ {[%clk 0:00:29]} 38...
Qb5+ {[%clk 0:01:18.8]} 39. Qxb5+ {[%clk 0:00:30.4]} 39... Kxb5 {[%clk
0:01:09.8]} 40. Rd7 {[%clk 0:00:31.6]} 40... Kc6 {[%clk 0:00:55.1]} 41. Rxf7
{[%clk 0:00:31.8]} 41... g5 {[%clk 0:00:56.8]} 42. Rg7 {[%clk 0:00:25.9]} 42...
Re5 {[%clk 0:00:55]} 43. g4 {[%clk 0:00:25.5]} 43... Ra5 {[%clk 0:00:53.3]} 44.
Kg2 {[%clk 0:00:24.3]} 44... Re5 {[%clk 0:00:34.6]} 45. f4 {[%clk 0:00:22]}
45... gxf4 {[%clk 0:00:33]} 46. h4 {[%clk 0:00:23.6]} 46... Re2+ {[%clk
0:00:29.2]} 47. Kf3 {[%clk 0:00:23.8]} 47... Rxa2 {[%clk 0:00:31.1]} 48. h5
{[%clk 0:00:23.9]} 48... a5 {[%clk 0:00:28.1]} 49. g5 {[%clk 0:00:22.4]} 49...
Rh2 {[%clk 0:00:26.2]} 50. h6 {[%clk 0:00:23.3]} 50... a4 {[%clk 0:00:24.4]} 51.
h7 {[%clk 0:00:24.1]} 51... a3 {[%clk 0:00:04.8]} 52. Rg6+ {[%clk 0:00:25]}
52... Kc5 {[%clk 0:00:06.5]} 53. Rh6 {[%clk 0:00:26]} 1

[Event "Torneo Nuevo Centro. Jornada 10"]
[Site "Chess.com"]
[Date "2020.08.21"]
[Round "4"]
[White "Bosch Jordà, Ricard"]
[Black "Gracia Calvo, Andrés"]
[Result "1-0"]
[WhiteElo "1941"]
[BlackElo "1806"]
[TimeControl "180+2"]
[EndTime "11:13:53 PDT"]
[Termination "Victoria de UltimateLimo por abandono"]

1. e4 {[%clk 0:02:56.1]} 1... Na6 {[%clk 0:03:01.9]} 2. d4 {[%clk 0:02:54.2]}
2... Nb8 {[%clk 0:03:03.8]} 3. Nc3 {[%clk 0:02:53.6]} 3... d5 {[%clk 0:03:05.7]}
4. Bd3 {[%clk 0:02:44.9]} 4... dxe4 {[%clk 0:03:07.6]} 5. Nxe4 {[%clk
0:02:45.8]} 5... Nf6 {[%clk 0:03:02.5]} 6. Nxf6+ {[%clk 0:02:43.3]} 6... exf6
{[%clk 0:03:02.7]} 7. c3 {[%clk 0:02:42.2]} 7... Bd6 {[%clk 0:03:01.6]} 8. Ne2
{[%clk 0:02:41.4]} 8... O-O {[%clk 0:03:01.8]} 9. O-O {[%clk 0:02:40.5]} 9...
Bg4 {[%clk 0:03:01.9]} 10. Qc2 {[%clk 0:02:37.9]} 10... h6 {[%clk 0:02:34.4]}
11. Nf4 {[%clk 0:02:10.6]} 11... Nd7 {[%clk 0:02:18.7]} 12. h3 {[%clk
0:02:02.7]} 12... Be6 {[%clk 0:02:13.2]} 13. d5 {[%clk 0:01:38.8]} 13... Bxh3
{[%clk 0:01:52.8]} 14. gxh3 {[%clk 0:01:35]} 14... Ne5 {[%clk 0:01:50.1]} 15.
Be4 {[%clk 0:01:19]} 15... Qd7 {[%clk 0:01:46.6]} 16. Kg2 {[%clk 0:01:09.9]}
16... Rfe8 {[%clk 0:01:38.4]} 17. Bd2 {[%clk 0:00:53.2]} 17... Nc4 {[%clk
0:01:33.7]} 18. Bf5 {[%clk 0:00:32.3]} 18... Qb5 {[%clk 0:01:17.4]} 19. Bd3
{[%clk 0:00:16.4]} 19... Qxb2 {[%clk 0:01:10]} 20. Qxb2 {[%clk 0:00:17]} 20...
Nxb2 {[%clk 0:01:10.5]} 21. Bb5 {[%clk 0:00:17.8]} 21... Re7 {[%clk 0:01:02.7]}
22. Rab1 {[%clk 0:00:17.4]} 22... a6 {[%clk 0:01:00.5]} 23. Rxb2 {[%clk
0:00:08.8]} 23... axb5 {[%clk 0:01:00.8]} 24. Rxb5 {[%clk 0:00:07.1]} 24... b6
{[%clk 0:01:00]} 25. Ra1 {[%clk 0:00:03.8]} 25... Be5 {[%clk 0:00:48.7]} 26. Nd3
{[%clk 0:00:02.7]} 26... Bd4 {[%clk 0:00:46.6]} 27. cxd4 {[%clk 0:00:03.5]}
27... Re2 {[%clk 0:00:45.9]} 28. Be3 {[%clk 0:00:04]} 28... f5 {[%clk
0:00:39.4]} 29. Rb2 {[%clk 0:00:03.9]} 29... Rxb2 {[%clk 0:00:36.6]} 30. Nxb2
{[%clk 0:00:05.8]} 30... g5 {[%clk 0:00:35.6]} 31. d6 {[%clk 0:00:06.8]} 31...
cxd6 {[%clk 0:00:35.4]} 32. Nc4 {[%clk 0:00:08]} 32... f4 {[%clk 0:00:32.2]} 33.
Bd2 {[%clk 0:00:08.8]} 33... Ra4 {[%clk 0:00:23]} 34. Nxb6 {[%clk 0:00:07.1]}
34... Rxd4 {[%clk 0:00:22.9]} 35. Bc3 {[%clk 0:00:06.2]} 35... Rd3 {[%clk
0:00:20.1]} 36. Bf6 {[%clk 0:00:06.3]} 36... Kh7 {[%clk 0:00:17.4]} 37. a4
{[%clk 0:00:06.7]} 37... Kg6 {[%clk 0:00:17.7]} 38. Nd7 {[%clk 0:00:06.5]} 38...
Rb3 {[%clk 0:00:11.6]} 39. a5 {[%clk 0:00:07.3]} 39... Rb7 {[%clk 0:00:11.9]}
40. a6 {[%clk 0:00:07.5]} 40... Ra7 {[%clk 0:00:12]} 41. Bd4 {[%clk 0:00:07.5]}
41... Rxd7 {[%clk 0:00:11.7]} 42. a7 {[%clk 0:00:08.9]} 42... Rxa7 {[%clk
0:00:11.3]} 43. Rxa7 {[%clk 0:00:09.4]} 43... f6 {[%clk 0:00:11]} 44. Kf3 {[%clk
0:00:10.6]} 44... Kf5 {[%clk 0:00:11.2]} 45. Rf7 {[%clk 0:00:10.6]} 45... Ke6
{[%clk 0:00:10.9]} 46. Rxf6+ {[%clk 0:00:11.8]} 46... Kd5 {[%clk 0:00:11.7]} 47.
Rxh6 {[%clk 0:00:12]} 47... Kxd4 {[%clk 0:00:12.6]} 48. Rxd6+ {[%clk 0:00:13.3]}
48... Ke5 {[%clk 0:00:13.4]} 49. Rg6 {[%clk 0:00:14.6]} 49... Kf5 {[%clk
0:00:14.3]} 50. Rg8 {[%clk 0:00:14.4]} 50... Kf6 {[%clk 0:00:15.1]} 51. h4
{[%clk 0:00:15.4]} 51... gxh4 {[%clk 0:00:15.9]} 52. Kxf4 {[%clk 0:00:16.5]}
52... h3 {[%clk 0:00:16.3]} 53. Rh8 {[%clk 0:00:17.5]} 53... h2 {[%clk
0:00:17.1]} 54. Rh3 {[%clk 0:00:16.7]} 54... Kg6 {[%clk 0:00:17.8]} 55. Rxh2
{[%clk 0:00:17.6]} 55... Kf6 {[%clk 0:00:18.7]} 56. Rh6+ {[%clk 0:00:18.7]}
56... Kg7 {[%clk 0:00:19.6]} 57. Kg5 {[%clk 0:00:18.9]} 57... Kf7 {[%clk
0:00:20]} 58. Ra6 {[%clk 0:00:18.2]} 58... Ke7 {[%clk 0:00:20]} 59. Kf5 {[%clk
0:00:19.5]} 59... Kd7 {[%clk 0:00:20.8]} 60. Ke5 {[%clk 0:00:20.9]} 60... Kc7
{[%clk 0:00:21.5]} 61. Kd5 {[%clk 0:00:21.6]} 1